[Event "GER-ch Youth-U16 2022"]
[Site "Willingen"]
[Date "2022.06.11"]
[Round "9.8"]
[White "Albert, Markus"]
[Black "Stork, Christopher"]
[Result "1-0"]
[ECO "A00"]
[WhiteElo "2053"]
[BlackElo "1994"]
[Annotator "TA"]
[PlyCount "71"]
[EventDate "2022.06.05"]
[EventType "swiss"]
[EventRounds "9"]
[EventCountry "GER"]
[SourceTitle "playchess.com"]
[Source "ChessBase"]
[SourceQuality "1"]
[TimeControl "40/4500+30:900+30"]

{[%evp 9,71,-105,-110,-128,-122,-140,-66,-75,-62,-81,-87,-100,-68,-91,-85,-68,-22,-48,-45,-126,-98,-118,-111,-109,-69,-106,-8,-16,24,23,12,20,45,45,66,48,278,279,272,274,334,314,560,545,768,762,767,761,755,741,683,713,691,547,541,517,976,750,976,970,968,956,956,956]} 1. g4 {[%emt 0:00:00]} e5 {[%emt 0:00:00]} 2. d4 {[%emt 0:00:00]} exd4 {[%emt 0:00:00]} 3. Bg2 {[%emt 0:00:00]} Nc6 {[%emt 0:00:00] [#]} 4. Nf3 $146 {[%emt 0:00:00]} ({Predecessor:} 4. Bxc6 Nf6 5. Bf3 Be7 6. Qxd4 O-O 7. Nh3 c6 8. Nf4 d5 9. Be3 Qc7 10. Nd2 Bd6 {1-0 (18) Giblin,M (1447)-De Smet,F (1532) Europe Echecs INT 2021}) 4... d5 {[%emt 0:00:00]} 5. h3 {[%emt 0:00:00]} Bc5 {[%emt 0:00:00]} 6. O-O {[%emt 0:00:00] A00: Irregular Openings.} Nge7 {[%emt 0:01:04]} 7. Nbd2 {[%emt 0:00:00]} O-O {[%emt 0:02:42]} (7... h5 8. g5 Nf5) ({Black should play} 7... Bb6 $17 {[%cal Og7g5]} 8. Nb3 h5) 8. Nb3 $15 {[%emt 0:00:00][%csl LRc5,LRd4] Black is slightly better.} Bd6 {[%emt 0:01:16]} 9. Nbxd4 {[%emt 0:00:00]} Nxd4 {[%emt 0:01:35]} 10. Qxd4 {[%emt 0:00:00]} c5 {[%emt 0:01:13][%cal Bc7c5,Bc5c4][%mdl 32]} 11. Qd3 {[%emt 0:00:00]} f5 $1 {[%emt 0:07:29]} 12. Rd1 {[%emt 0:16:45]} Bc7 {[%emt 0:10:56]} (12... Kh8 $15) 13. g5 {[%emt 0:05:52]} Be6 {[%emt 0:01:29]} 14. c3 {[%emt 0:02:09]} (14. b4 $15) 14... Qd6 {[%emt 0:03:03]} 15. b4 {[%emt 0:04:21] [#]} c4 {[%emt 0:04:13]} (15... cxb4 $6 16. cxb4 Ng6 17. Be3 $11) 16. Qd4 {[%emt 0:06:53]} Nc6 {[%emt 0:02:22]} (16... f4 17. b5 Nf5) 17. Qc5 {[%emt 0:03:57] [#]} Qxc5 {[%emt 0:04:40]} (17... Qd7) (17... Qd7 $1 $17) 18. bxc5 $11 {[%emt 0:00:05]} b6 {[%emt 0:02:21]} 19. Be3 {[%emt 0:02:58]} f4 {[%emt 0:05:24]} 20. Nd4 {[%emt 0:00:32]} Nxd4 {[%emt 0:02:58]} (20... fxe3 $2 21. Nxe6 exf2+ 22. Kf1 $18) 21. Bxd4 {[%emt 0:00:29]} b5 {[%emt 0:01:12]} 22. a4 {[%emt 0:02:23]} Rfb8 {[%emt 0:01:54] Black cannot hold the game after this.} ({Better is} 22... bxa4 $14 23. Rxa4 a5) 23. axb5 $18 {[%emt 0:00:41]} Rxb5 {[%emt 0:00:06]} 24. Ra6 {[%emt 0:00:13]} Bf7 {[%emt 0:04:06]} 25. Rda1 {[%emt 0:00:54]} g6 $2 {[%emt 0:06:24]} (25... Rd8 {might work better.} 26. Rxa7 Bb8) 26. Bf3 {[%emt 0:01:50] White is clearly winning.} Rb2 {[%emt 0:02:37]} 27. Kg2 {[%emt 0:01:24]} Rd8 {[%emt 0:00:48]} 28. Rxa7 {[%emt 0:00:21][%cal Ba6a7,Ba7e7,Be7d7,Bd7d8,Bd8b8][%mdl 32]} Bb8 {[%emt 0:00:32]} 29. Re7 {[%emt 0:00:26]} Kf8 {[%emt 0:01:03]} 30. Bf6 {[%emt 0:00:21]} Rc8 {[%emt 0:01:40]} 31. Ra8 {[%emt 0:01:27]} Rxc5 {[%emt 0:05:20]} 32. Rd7 {[%emt 0:00:15]} Rcb5 {[%emt 0:01:23]} (32... Rc8 $142 33. Be7+ Kg7) 33. Rd8+ {[%emt 0:00:18]} Be8 {[%emt 0:00:07] [#]} 34. Be5 $1 {[%emt 0:00:34][%mdl 512]} Ke7 {[%emt 0:03:54]} 35. Raxb8 {[%emt 0:00:22]} Rxb8 {[%emt 0:00:27]} 36. Rxb8 {[%emt 0:00:06] Weighted Error Value: White=0.16 (very precise) /Black=0.50} 1-0

[Event "GER-ch Youth-U16 2022"]
[Site "Willingen"]
[Date "2022.06.11"]
[Round "9.9"]
[White "Chassard, Cedric"]
[Black "Lerchl, Clemens"]
[Result "1/2-1/2"]
[ECO "B51"]
[WhiteElo "2051"]
[BlackElo "1843"]
[Annotator "TA"]
[PlyCount "87"]
[EventDate "2022.06.05"]
[EventType "swiss"]
[EventRounds "9"]
[EventCountry "GER"]
[SourceTitle "playchess.com"]
[Source "ChessBase"]
[SourceQuality "1"]
[TimeControl "40/4500+30:900+30"]

{[%evp 9,87,8,23,22,23,25,32,40,29,44,44,30,43,41,58,60,60,51,49,53,105,91,169,151,149,151,164,173,163,168,174,169,167,162,185,126,126,127,127,127,138,81,87,101,107,63,66,48,57,30,50,20,19,17,33,37,33,14,13,8,18,13,57,57,60,48,74,57,66,50,78,0,60,64,66,54,63,51,68,33]} 1. e4 {[%emt 0:00:00]} c5 {[%emt 0:00:00]} 2. Nf3 {[%emt 0:00:00]} d6 {[%emt 0:00:00]} 3. Bb5+ {[%emt 0:00:00]} Nd7 {[%emt 0:00:00]} 4. Ba4 {[%emt 0:00:00]} Ngf6 {[%emt 0:00:00]} 5. O-O {[%emt 0:00:00]} Nxe4 {[%emt 0:00:00]} 6. Re1 $1 {[%emt 0:00:00] B51: Sicilian: Moscow Variation (3 Bb5+) without 3...Bd7.} Nef6 {[%emt 0:00:00]} 7. d4 {[%emt 0:00:00][%cal Bd2d4,Bd4d5][%mdl 32]} e6 {[%emt 0:00:00]} 8. d5 {[%emt 0:00:00]} e5 {[%emt 0:00:00] [#]} 9. Nxe5 $1 {[%emt 0:00:00]} Be7 {[%emt 0:00:00] [#]} (9... dxe5 $2 10. Rxe5+ Qe7 11. Rxe7+ Bxe7 12. d6 $18) 10. Nc4 $146 {[%emt 0:00:00] Threatens to win with Nxd6+.} ({Predecessor:} 10. Nf3 O-O 11. c4 a6 12. Nc3 b5 13. cxb5 Nb6 14. b3 a5 15. Bg5 h6 16. Bh4 {0-1 (36) Eljanov,P (2672)-Korobov,A (2688) Chess.com INT 2020}) 10... O-O {[%emt 0:00:00]} 11. Bf4 $36 {[%emt 0:00:00][%mdl 2048] White is pushing.} Nb6 {[%emt 0:00:00]} 12. Nxb6 {[%emt 0:00:00]} axb6 {[%emt 0:00:00]} 13. Bb5 {[%emt 0:10:52]} Bd7 {[%emt 0:00:00]} 14. Nc3 {[%emt 0:03:54]} Ra5 {[%emt 0:05:20]} (14... Ne8 $14) 15. a4 $16 {[%emt 0:03:35]} Ne8 {[%emt 0:08:58] [#]} (15... Re8 $16) 16. Bxd7 $1 $18 {[%emt 0:08:09]} Qxd7 {[%emt 0:00:09] [#]} 17. Nb5 $1 {[%emt 0:00:56] White is more active.} Nf6 {[%emt 0:21:37] [#]} 18. Rxe7 $1 {[%emt 0:25:31][%mdl 512]} Qxe7 {[%emt 0:00:09]} 19. Bxd6 {[%emt 0:00:11]} Qe4 {[%emt 0:00:04]} 20. Bxf8 {[%emt 0:00:30]} Kxf8 {[%emt 0:00:15]} 21. Nc3 {[%emt 0:01:28]} Qd4 {[%emt 0:00:12]} 22. Qxd4 {[%emt 0:11:33]} (22. Qf3 $18) 22... cxd4 {[%emt 0:00:06][%mdl 4096] Endgame KRN-KRN} 23. Nb5 {[%emt 0:00:08]} Nxd5 {[%emt 0:04:10]} 24. Nxd4 {[%emt 0:00:27]} Rc5 {[%emt 0:03:27]} 25. Kf1 {[%emt 0:01:10]} ({White should play} 25. c3) 25... Nb4 $16 {[%emt 0:02:18]} 26. c3 {[%emt 0:03:43]} Nd3 {[%emt 0:00:12]} 27. Rb1 {[%emt 0:02:12]} Rc4 {[%emt 0:01:04]} 28. Ke2 {[%emt 0:01:09]} Nc5 {[%emt 0:00:36]} 29. Nf5 {[%emt 0:12:11]} g6 {[%emt 0:08:36]} 30. Ne3 {[%emt 0:01:23]} Rxa4 {[%emt 0:00:34]} 31. Nd5 {[%emt 0:00:27]} Re4+ {[%emt 0:01:44]} 32. Kf3 {[%emt 0:00:23]} Re6 {[%emt 0:03:37]} 33. Ra1 {[%emt 0:01:05]} Rd6 {[%emt 0:03:25]} 34. Ne3 {[%emt 0:00:01]} Kg7 {[%emt 0:09:45]} (34... Rd2 $5 {[%cal Rd2b2]}) 35. Rd1 {[%emt 0:00:38]} Re6 {[%emt 0:06:46]} 36. Rd4 {[%emt 0:00:01]} h5 {[%emt 0:06:31]} 37. g3 {[%emt 0:00:17]} Kh6 {[%emt 0:00:36]} 38. h4 {[%emt 0:00:17]} Kg7 {[%emt 0:00:08]} 39. Ke2 {[%emt 0:00:31]} Kf6 {[%emt 0:00:27]} 40. Kf3 {[%emt 0:00:24]} Kg7 $1 {[%emt 0:02:59]} 41. Ng2 {[%emt 0:00:00] White is slightly better.} Nb3 {[%emt 0:00:00]} 42. Rd5 {[%emt 0:00:00]} Nc5 {[%emt 0:00:00]} 43. Ne3 {[%emt 0:00:00]} Kf6 {[%emt 0:00:00]} 44. Nc4 {[%emt 0:00:00] Black defended with fortune.  Weighted Error Value: White=0.10 (very precise) /Black=0.10 (very precise)} 1/2-1/2

[Event "GER-ch Youth-U16 2022"]
[Site "Willingen"]
[Date "2022.06.11"]
[Round "9.10"]
[White "Bock, Marlon"]
[Black "Kort, Felix"]
[Result "1-0"]
[ECO "A46"]
[WhiteElo "1816"]
[BlackElo "1894"]
[Annotator "NA RC COMBH"]
[PlyCount "85"]
[EventDate "2022.06.05"]
[EventType "swiss"]
[EventRounds "9"]
[EventCountry "GER"]
[SourceTitle "playchess.com"]
[Source "ChessBase"]
[SourceQuality "1"]
[TimeControl "40/4500+30:900+30"]

1. d4 {[%emt 0:00:00]} Nf6 {[%emt 0:00:00]} 2. Nf3 {[%emt 0:00:00]} e6 {[%emt 0:00:00]} 3. e3 {[%emt 0:00:00]} b6 {[%emt 0:00:00]} 4. Bd3 {[%emt 0:00:00]} Bb7 {[%emt 0:00:00]} 5. O-O {[%emt 0:00:00]} d5 {[%emt 0:00:00]} 6. Nbd2 {[%emt 0:00:00]} Bd6 {[%emt 0:00:00]} 7. b3 {[%emt 0:00:00]} O-O {[%emt 0:00:00]} 8. Bb2 {[%emt 0:00:00]} Ne4 {[%emt 0:00:00]} 9. Qe2 {[%emt 0:00:00]} Nd7 {[%emt 0:00:00]} 10. Ne5 {[%emt 0:00:00]} f6 {[%emt 0:09:24]} 11. Nxd7 {[%emt 0:00:00]} Qxd7 {[%emt 0:00:07]} 12. f4 {[%emt 0:03:59]} f5 {[%emt 0:19:52]} 13. Nf3 {[%emt 0:03:52]} Rf6 {[%emt 0:01:59]} 14. c4 {[%emt 0:05:59]} Rh6 {[%emt 0:09:45]} 15. Rac1 {[%emt 0:05:12]} a5 {[%emt 0:01:23]} 16. a4 {[%emt 0:04:48]} Qf7 {[%emt 0:07:25]} 17. Ne5 $11 {[%emt 0:05:34]} Qf6 {[%emt 0:00:29]} 18. Bxe4 {[%emt 0:12:13]} fxe4 {[%emt 0:02:09]} 19. Ng4 {[%emt 0:02:22]} Qh4 {[%emt 0:04:39]} 20. Nxh6+ {[%emt 0:00:30]} Qxh6 21. Qg4 Ba6 {[%emt 0:01:00]} 22. Rf2 {[%emt 0:06:22]} Rf8 {[%emt 0:00:46]} 23. c5 {[%emt 0:03:55]} bxc5 {[%emt 0:00:20]} 24. dxc5 {[%emt 0:00:04]} Be7 {[%emt 0:00:06]} 25. Bxg7 {[%emt 0:01:35]} Qxg7 {[%emt 0:00:34]} 26. Qxe6+ {[%emt 0:00:06]} Kh8 {[%emt 0:00:29]} 27. Qxa6 {[%emt 0:00:09]} Rb8 {[%emt 0:01:24]} 28. Qxa5 {[%emt 0:10:40]} Rxb3 {[%emt 0:01:43]} 29. Qxc7 {[%emt 0:00:18]} Rxe3 {[%emt 0:00:05]} 30. a5 {[%emt 0:00:24]} Ra3 {[%emt 0:01:28]} 31. a6 {[%emt 0:01:09]} e3 {[%emt 0:04:48]} 32. Re2 {[%emt 0:12:02]} Ra1 {[%emt 0:03:38]} 33. Qb8+ {[%emt 0:00:30]} Bf8 {[%emt 0:00:06]} 34. Qxf8+ {[%emt 0:00:44]} Qxf8 {[%emt 0:00:05]} 35. Rxa1 {[%emt 0:00:06]} Qg7 {[%emt 0:01:50]} 36. Rb1 {[%emt 0:01:11]} Qa7 {[%emt 0:03:10]} 37. Rxe3 {[%emt 0:05:06]} Qxc5 {[%emt 0:01:34]} 38. Rbe1 {[%emt 0:00:17]} d4 {[%emt 0:05:41]} 39. a7 {[%emt 0:00:28]} dxe3 {[%emt 0:01:53]} 40. a8=Q+ {[%emt 0:00:06]} Kg7 {[%emt 0:00:16]} 41. Qe4 {[%emt 0:15:50]} e2+ {[%emt 0:16:02]} 42. Kh1 {[%emt 0:00:05]} Qf2 {[%emt 0:01:19]} 43. Qxe2 {[%emt 0:00:05]} 1-0

[Event "GER-ch Youth-U16 2022"]
[Site "Willingen"]
[Date "2022.06.11"]
[Round "9.11"]
[White "Rempe, Jonas"]
[Black "Mimkes, Antal"]
[Result "1-0"]
[ECO "C63"]
[WhiteElo "1856"]
[BlackElo "1696"]
[Annotator "NA RC COMBH"]
[PlyCount "75"]
[EventDate "2022.06.05"]
[EventType "swiss"]
[EventRounds "9"]
[EventCountry "GER"]
[SourceTitle "playchess.com"]
[Source "ChessBase"]
[SourceQuality "1"]
[TimeControl "40/4500+30:900+30"]

1. e4 {[%emt 0:00:00]} e5 {[%emt 0:00:00]} 2. Nf3 {[%emt 0:00:00]} Nc6 {[%emt 0:00:00]} 3. Bb5 {[%emt 0:00:00]} f5 {[%emt 0:00:00]} 4. d3 {[%emt 0:00:00]} Nf6 {[%emt 0:00:00]} 5. Nc3 {[%emt 0:00:00]} Bc5 {[%emt 0:00:00]} 6. O-O {[%emt 0:00:00]} O-O {[%emt 0:00:00]} 7. exf5 {[%emt 0:08:16]} d6 {[%emt 0:00:00]} 8. Ne4 {[%emt 0:13:57]} Bb6 {[%emt 0:02:25]} 9. Bg5 {[%emt 0:09:04]} Kh8 {[%emt 0:04:05]} 10. Nh4 {[%emt 0:12:05]} Nd4 {[%emt 0:07:15] [#]} 11. Bxf6 {[%emt 0:13:14]} ({White should try} 11. Nxf6 $1 $16 gxf6 12. Bh6 (12. Qh5 $2 fxg5 13. Ng6+ Kg7 $19)) 11... gxf6 {[%emt 0:07:08]} 12. Qh5 {[%emt 0:05:35]} Nxb5 {[%emt 0:03:39]} 13. Ng6+ {[%emt 0:00:24]} Kg7 {[%emt 0:01:08]} 14. Nxf8 {[%emt 0:00:10]} Qxf8 {[%emt 0:00:44]} 15. a4 {[%emt 0:02:37]} Nd4 {[%emt 0:01:55]} 16. a5 {[%emt 0:01:11]} d5 {[%emt 0:02:11]} 17. axb6 {[%emt 0:05:49]} dxe4 {[%emt 0:03:31]} 18. dxe4 {[%emt 0:00:01]} cxb6 {[%emt 0:02:15]} 19. Ra3 {[%emt 0:00:24]} Bd7 {[%emt 0:03:17]} 20. Rh3 $18 {[%emt 0:00:56]} Qh8 {[%emt 0:05:52]} 21. c3 {[%emt 0:01:55]} Nc6 {[%emt 0:04:35]} 22. Rd1 {[%emt 0:00:31]} Be8 {[%emt 0:01:56]} 23. Rg3+ {[%emt 0:00:36]} Kf8 {[%emt 0:03:02]} 24. Qh6+ {[%emt 0:00:02]} Kf7 {[%emt 0:01:31]} 25. Rd6 {[%emt 0:00:03]} Ne7 {[%emt 0:05:56]} 26. Re6 {[%emt 0:02:38]} Rd8 {[%emt 0:02:19]} 27. Rg7+ {[%emt 0:00:56]} Qxg7 {[%emt 0:00:50]} 28. Rxe7+ {[%emt 0:00:03]} Kxe7 {[%emt 0:00:01]} 29. Qxg7+ {[%emt 0:00:02]} Bf7 {[%emt 0:00:02]} 30. h3 {[%emt 0:00:33]} h5 {[%emt 0:01:04]} 31. Qh6 {[%emt 0:00:28]} Rd3 {[%emt 0:01:45]} 32. f4 {[%emt 0:01:14]} exf4 {[%emt 0:01:04]} 33. Qxf4 {[%emt 0:00:02]} Rd7 {[%emt 0:00:37]} 34. e5 {[%emt 0:00:09]} fxe5 {[%emt 0:00:15]} 35. Qxe5+ {[%emt 0:00:02]} Kd8 {[%emt 0:00:38]} 36. g4 {[%emt 0:00:09]} Rd1+ {[%emt 0:00:44]} 37. Kg2 {[%emt 0:00:04]} Bd5+ {[%emt 0:00:13]} 38. Kg3 {[%emt 0:00:19]} 1-0

[Event "GER-ch Youth-U16 2022"]
[Site "Willingen"]
[Date "2022.06.11"]
[Round "9.12"]
[White "Gluma, Christian"]
[Black "Ehrig, Leon Chris"]
[Result "1-0"]
[ECO "B28"]
[WhiteElo "2012"]
[BlackElo "1890"]
[Annotator "TA"]
[PlyCount "78"]
[EventDate "2022.06.05"]
[EventType "swiss"]
[EventRounds "9"]
[EventCountry "GER"]
[SourceTitle "playchess.com"]
[Source "ChessBase"]
[SourceQuality "1"]
[TimeControl "40/4500+30:900+30"]

{[%evp 9,78,25,11,18,18,0,-3,-41,-36,-41,-39,-29,-41,-98,12,0,0,20,31,26,21,24,33,16,58,47,53,46,55,61,53,61,70,70,74,74,74,74,74,74,74,74,74,66,72,70,200,183,303,247,379,294,391,360,889,875,1279,1229,1568,1538,1545,1552,1525,1421,1414,1399,1252,1216,29969,29971,6519]} 1. e4 {[%emt 0:00:00]} c5 {[%emt 0:00:00]} 2. Nf3 {[%emt 0:00:00]} a6 {[%emt 0:00:00]} 3. c3 {[%emt 0:00:00]} e6 {[%emt 0:00:00]} 4. d4 {[%emt 0:00:00]} d5 {[%emt 0:00:00]} 5. e5 {[%emt 0:00:00]} Bd7 {[%emt 0:00:00]} 6. Be3 {[%emt 0:03:21] B28: Sicilian: 2 Nf3 a6 (O'Kelly Variation).} Qb6 {[%emt 0:00:00]} 7. Qc2 {[%emt 0:03:37]} Nc6 {[%emt 0:00:00] [#]} 8. a3 $146 {[%emt 0:03:52] The position is equal.} ({Predecessor:} 8. Nbd2 Rc8 9. dxc5 Bxc5 10. Bxc5 Qxc5 11. Nb3 Qb6 12. a3 Nge7 13. Bd3 Ng6 14. Bxg6 fxg6 {0-1 (49) Santos,I (1778)-Nogueira,J (1656) Fortaleza 2016}) 8... Rc8 {[%emt 0:00:00]} 9. dxc5 {[%emt 0:07:32]} Bxc5 {[%emt 0:00:00]} 10. Bxc5 {[%emt 0:00:32]} Qxc5 {[%emt 0:00:00]} 11. Nbd2 {[%emt 0:03:17]} (11. Bd3) (11. Bd3 $15) 11... Nge7 {[%emt 0:02:53]} (11... f6 $17 12. Nb3 Qb6 13. exf6 Nxf6) 12. Bd3 $11 {[%emt 0:03:20]} Ng6 {[%emt 0:06:08]} 13. Bxg6 {[%emt 0:01:22]} hxg6 {[%emt 0:00:11]} 14. O-O {[%emt 0:02:14]} Qb6 {[%emt 0:02:21]} 15. Rfe1 {[%emt 0:03:13]} Qc7 {[%emt 0:01:45]} (15... Ne7 {keeps more tension.} 16. a4 Nf5 17. a5 Qd8) 16. Qd3 {[%emt 0:02:52]} Na5 {[%emt 0:06:47]} 17. Qe3 {[%emt 0:09:28]} b5 {[%emt 0:08:41]} 18. Qf4 {[%emt 0:04:42]} Nc4 {[%emt 0:06:43]} 19. Rab1 {[%emt 0:06:19]} Rh5 20. Re2 {[%emt 0:07:33]} Rf5 {[%emt 0:18:30]} 21. Qg3 {[%emt 0:04:55]} Qd8 {[%emt 0:03:50]} 22. Nb3 {[%emt 0:02:10][%cal Bd2b3,Bb3d4,Bd4c2,Bc2d4,Bd4e6][%mdl 32]} a5 {[%emt 0:03:36]} 23. Nbd4 {[%emt 0:01:46]} Rh5 {[%emt 0:00:16]} 24. Qf4 {[%emt 0:02:21]} Qe7 {[%emt 0:04:00]} 25. h4 {[%emt 0:02:39]} Rb8 {[%emt 0:02:11]} 26. Nc2 {[%emt 0:02:04]} Bc8 {[%emt 0:05:58]} 27. Ng5 {[%emt 0:02:21] b3 is the strong threat.} Ba6 {[%emt 0:06:03] [#] This costs Black the game.} (27... Rb7 $14) 28. b3 $1 $18 {[%emt 0:02:21]} Nb6 {[%emt 0:00:27]} (28... Nxa3 {was necessary.} 29. Nxa3 b4) 29. Re3 {[%emt 0:01:24] Strongly threatening Rf3.} Rc8 {[%emt 0:01:37]} (29... Nd7 {keeps fighting.} 30. Nd4 Rb6) 30. Nd4 {[%emt 0:02:00]} Rc7 {[%emt 0:00:59]} 31. Qg4 {[%emt 0:01:03]} Rh8 $2 {[%emt 0:03:31]} (31... Rc8 32. Rf3 Rxg5 33. hxg5 (33. Qxg5 Qxg5 34. hxg5 Nd7 $18) 33... Kd7) 32. Rf3 {[%emt 0:00:51]} Rf8 {[%emt 0:02:48] [#]} 33. Ngxe6 $1 {[%emt 0:01:10][%mdl 512]} fxe6 {[%emt 0:01:37]} (33... Bc8 34. Nxc7+) 34. Qxg6+ {[%emt 0:01:26]} Rf7 {[%emt 0:00:22]} 35. Nxe6 {[%emt 0:00:11]} Rc6 {[%emt 0:01:14]} 36. Nxg7+ {[%emt 0:00:25]} Kf8 {[%emt 0:00:10]} 37. Rxf7+ {[%emt 0:00:20]} Qxf7 {[%emt 0:00:14]} 38. Qxc6 Qxg7 {[%emt 0:00:42]} 39. Qxb6 {[%emt 0:00:17]} Bc8 {[%emt 0:00:02] Weighted Error Value: White=0.10 (very precise) /Black=0.62} 1-0

[Event "GER-ch Youth-U16 2022"]
[Site "Willingen"]
[Date "2022.06.11"]
[Round "9.13"]
[White "Beyer, Lorenz"]
[Black "Hecht, Jonas Christian"]
[Result "1/2-1/2"]
[ECO "D02"]
[WhiteElo "1512"]
[BlackElo "1884"]
[Annotator "NA RC COMBH"]
[PlyCount "42"]
[EventDate "2022.06.05"]
[EventType "swiss"]
[EventRounds "9"]
[EventCountry "GER"]
[SourceTitle "playchess.com"]
[Source "ChessBase"]
[SourceQuality "1"]
[TimeControl "40/4500+30:900+30"]

1. d4 {[%emt 0:00:00]} Nf6 {[%emt 0:00:00]} 2. Bf4 {[%emt 0:00:00]} d5 {[%emt 0:00:00]} 3. Nf3 {[%emt 0:00:00]} c5 {[%emt 0:00:00]} 4. e3 {[%emt 0:00:00]} Nc6 {[%emt 0:00:00]} 5. c3 {[%emt 0:00:00]} Qb6 {[%emt 0:00:00]} 6. b3 {[%emt 0:00:00]} cxd4 {[%emt 0:00:00]} 7. cxd4 {[%emt 0:00:00]} Bf5 {[%emt 0:00:00]} 8. a3 {[%emt 0:00:00]} e6 {[%emt 0:00:00]} 9. Be2 {[%emt 0:00:00]} Qa5+ {[%emt 0:00:00]} 10. Nbd2 {[%emt 0:00:00]} Bxa3 {[%emt 0:09:26]} 11. O-O {[%emt 0:00:00]} Qb4 {[%emt 0:00:28]} 12. Nh4 {[%emt 0:00:00]} Qe7 {[%emt 0:04:40]} 13. Nxf5 {[%emt 0:00:25]} exf5 {[%emt 0:00:31]} 14. Bb5 {[%emt 0:02:59]} O-O {[%emt 0:12:30]} 15. Bxc6 {[%emt 0:08:03]} bxc6 {[%emt 0:00:11]} 16. Qc2 {[%emt 0:00:18]} Bb4 {[%emt 0:00:16]} 17. Nf3 {[%emt 0:01:06]} Qe6 {[%emt 0:01:55]} 18. Ra6 {[%emt 0:03:01]} Rfc8 {[%emt 0:02:54]} 19. Rc1 {[%emt 0:19:47]} Ne4 $11 {[%emt 0:05:41]} 20. Rxc6 {[%emt 0:15:29]} Rxc6 {[%emt 0:00:12]} 21. Qxc6 {[%emt 0:00:05]} Qxc6 {[%emt 0:01:03]} 1/2-1/2

[Event "GER-ch Youth-U16 2022"]
[Site "Willingen"]
[Date "2022.06.11"]
[Round "9.14"]
[White "Bungarten, Jona"]
[Black "Guo, Philipp Ziming"]
[Result "0-1"]
[ECO "B21"]
[WhiteElo "1843"]
[BlackElo "1825"]
[Annotator "NA RC COMBH"]
[PlyCount "58"]
[EventDate "2022.06.05"]
[EventType "swiss"]
[EventRounds "9"]
[EventCountry "GER"]
[SourceTitle "playchess.com"]
[Source "ChessBase"]
[SourceQuality "1"]
[TimeControl "40/4500+30:900+30"]

1. e4 {[%emt 0:00:00]} c5 {[%emt 0:00:00]} 2. d4 {[%emt 0:00:00]} cxd4 {[%emt 0:00:00]} 3. c3 {[%emt 0:00:00]} Nf6 {[%emt 0:00:00]} 4. e5 {[%emt 0:00:00]} Nd5 {[%emt 0:00:00]} 5. Nf3 {[%emt 0:00:00]} Nc6 {[%emt 0:00:00]} 6. Bc4 {[%emt 0:00:00]} Nb6 {[%emt 0:00:00]} 7. Bb3 {[%emt 0:00:00]} d6 {[%emt 0:00:00]} 8. exd6 {[%emt 0:00:00]} Qxd6 {[%emt 0:00:00]} 9. O-O {[%emt 0:00:00]} Be6 {[%emt 0:00:00]} 10. Na3 {[%emt 0:00:00]} dxc3 {[%emt 0:00:00]} 11. Qe2 {[%emt 0:00:00]} Bxb3 {[%emt 0:00:00]} 12. axb3 {[%emt 0:00:00]} a6 {[%emt 0:00:00]} 13. bxc3 {[%emt 0:00:00]} e6 {[%emt 0:00:00]} 14. Rd1 {[%emt 0:00:00]} Qc7 {[%emt 0:00:00]} 15. Qe4 {[%emt 0:00:00]} Rd8 {[%emt 0:05:41]} 16. Bb2 {[%emt 0:06:54]} Be7 {[%emt 0:10:14]} 17. Nc2 {[%emt 0:07:02]} Bf6 {[%emt 0:12:28]} 18. Ne3 {[%emt 0:03:04]} O-O {[%emt 0:02:11]} 19. Ng4 {[%emt 0:10:16]} Nd5 {[%emt 0:06:02]} 20. g3 {[%emt 0:17:42]} Bxc3 {[%emt 0:06:51]} 21. Ng5 g6 22. Ba3 {[%emt 0:20:39]} Bxa1 {[%emt 0:19:29]} 23. Rxa1 {[%emt 0:00:39]} Rfe8 {[%emt 0:05:50]} 24. Nh6+ {[%emt 0:03:06]} Kg7 {[%emt 0:00:07]} 25. Ngxf7 {[%emt 0:01:53]} Nf6 {[%emt 0:02:38]} 26. Bb2 {[%emt 0:03:35]} e5 {[%emt 0:00:23]} 27. Qh4 {[%emt 0:02:31]} Rd2 {[%emt 0:05:18]} 28. Nf5+ {[%emt 0:05:02]} Kxf7 {[%emt 0:01:24]} 29. Qh6 {[%emt 0:00:32]} Qd7 {[%emt 0:02:08]} 0-1